[Event "Titled Tuesday Blitz July 4 Late 2023"]
[White "Rostomyan, Mikayel"]
[Black "Zhou, Qiyu"]
[WhiteFideId "13313754"]
[BlackFideId "505161"]
[WhiteElo "2625"]
[BlackElo "2361"]
[Result "1-0"]
[Round "1"]
[TimeControl "180+2"]
[Date "2023.07.04"]
[WhiteClock "0:01:06"]
[BlackClock "0:01:17"]
[Board "105"]

1. d4 {[%clk 0:03:00]}  Nf6 {[%clk 0:02:59]} 2. Nf3 {[%clk 0:02:58]}  d5 {[%clk 0:02:59]} 3. c4 {[%clk 0:02:53]}  e6 {[%clk 0:02:59]} 4. g3 {[%clk 0:02:50]}  Bb4+ {[%clk 0:02:58]} 5. Bd2 {[%clk 0:02:42]}  Be7 {[%clk 0:02:58]} 6. Bg2 {[%clk 0:02:42]}  O-O {[%clk 0:02:57]} 7. Qc2 {[%clk 0:02:39]}  c6 {[%clk 0:02:55]} 8. O-O {[%clk 0:02:39]}  b6 {[%clk 0:02:55]} 9. Bf4 {[%clk 0:02:38]}  a5 {[%clk 0:02:53]} 10. Nbd2 {[%clk 0:02:38]}  Ba6 {[%clk 0:02:53]} 11. Rac1 {[%clk 0:02:36]}  Bb7 {[%clk 0:02:34]} 12. Ne5 {[%clk 0:02:33]}  Nfd7 {[%clk 0:02:31]} 13. e4 {[%clk 0:02:26]}  Nxe5 {[%clk 0:02:29]} 14. Bxe5 {[%clk 0:02:25]}  f6 {[%clk 0:02:26]} 15. Bf4 {[%clk 0:02:25]}  Bd6 {[%clk 0:02:12]} 16. Be3 {[%clk 0:02:10]}  Nd7 {[%clk 0:02:02]} 17. exd5 {[%clk 0:02:03]}  cxd5 {[%clk 0:01:58]} 18. cxd5 {[%clk 0:02:02]}  exd5 {[%clk 0:01:56]} 19. Qb3 {[%clk 0:01:54]}  Kh8 {[%clk 0:01:51]} 20. Bxd5 {[%clk 0:01:53]}  Rb8 {[%clk 0:01:48]} 21. Bxb7 {[%clk 0:01:41]}  Rxb7 {[%clk 0:01:48]} 22. Qd5 {[%clk 0:01:41]}  Qb8 {[%clk 0:01:43]} 23. Rc6 {[%clk 0:01:34]}  Bb4 {[%clk 0:01:41]} 24. Ne4 {[%clk 0:01:23]}  Rd8 {[%clk 0:01:40]} 25. Bf4 {[%clk 0:01:23]}  Qa8 {[%clk 0:01:37]} 26. Nd6 {[%clk 0:01:21]}  Bxd6 {[%clk 0:01:36]} 27. Rxd6 {[%clk 0:01:20]}  Qa7 {[%clk 0:01:33]} 28. Re1 {[%clk 0:01:18]}  Rf8 {[%clk 0:01:27]} 29. Re7 {[%clk 0:01:18]}  Rd8 {[%clk 0:01:19]} 30. Qf7 {[%clk 0:01:06]}  Rg8 {[%clk 0:01:17]} 1-0


[Site "https://www.chess.com"]

[Event "Titled Tuesday Blitz July 4 Late 2023"]
[White "Skatchkov, Valery"]
[Black "Bazilius, Augustinas"]
[WhiteFideId "24195812"]
[BlackFideId "12832251"]
[WhiteElo "2624"]
[BlackElo "2358"]
[Result "1-0"]
[Round "1"]
[TimeControl "180+2"]
[Date "2023.07.04"]
[WhiteClock "0:01:55"]
[BlackClock "0:01:48"]
[Board "107"]

1. d4 {[%clk 0:02:59]}  Nf6 {[%clk 0:02:58]} 2. c4 {[%clk 0:02:59]}  g6 {[%clk 0:02:57]} 3. Nc3 {[%clk 0:02:59]}  d5 {[%clk 0:02:58]} 4. Bg5 {[%clk 0:02:59]}  Ne4 {[%clk 0:02:41]} 5. Bf4 {[%clk 0:02:59]}  Nxc3 {[%clk 0:02:39]} 6. bxc3 {[%clk 0:02:59]}  Bg7 {[%clk 0:02:36]} 7. Nf3 {[%clk 0:02:59]}  dxc4 {[%clk 0:02:36]} 8. e4 {[%clk 0:02:59]}  c5 {[%clk 0:02:36]} 9. Bxc4 {[%clk 0:02:59]}  Nc6 {[%clk 0:02:32]} 10. O-O {[%clk 0:01:55]}  cxd4 {[%clk 0:02:24]} 11. cxd4 {[%clk 0:01:55]}  Nxd4 {[%clk 0:02:15]} 12. Nxd4 {[%clk 0:01:55]}  Qxd4 {[%clk 0:02:05]} 13. Bb5+ {[%clk 0:01:55]}  Bd7 {[%clk 0:02:06]} 14. Qxd4 {[%clk 0:01:54]}  Bxd4 {[%clk 0:02:04]} 15. Bxd7+ {[%clk 0:01:55]}  Kxd7 {[%clk 0:01:48]} 16. Rad1 {[%clk 0:01:55]} 1-0


[Site "https://www.chess.com"]

[Event "Titled Tuesday Blitz July 4 Late 2023"]
[White "Todorovic, Bojan"]
[Black "Karttunen, Mika"]
[WhiteFideId "917087"]
[BlackFideId "502081"]
[WhiteElo "2357"]
[BlackElo "2619"]
[Result "0-1"]
[Round "1"]
[TimeControl "180+2"]
[Date "2023.07.04"]
[WhiteClock "0:00:00"]
[BlackClock "0:00:09"]
[Board "108"]

1. d4 {[%clk 0:02:58]}  Nf6 {[%clk 0:02:59]} 2. c4 {[%clk 0:02:57]}  e6 {[%clk 0:02:59]} 3. Nf3 {[%clk 0:02:57]}  d5 {[%clk 0:02:59]} 4. Nc3 {[%clk 0:02:56]}  Bb4 {[%clk 0:02:58]} 5. Qa4+ {[%clk 0:02:52]}  Nc6 {[%clk 0:02:57]} 6. e3 {[%clk 0:02:52]}  O-O {[%clk 0:02:57]} 7. Bd2 {[%clk 0:02:51]}  Re8 {[%clk 0:02:51]} 8. Be2 {[%clk 0:02:46]}  a6 {[%clk 0:02:51]} 9. Qc2 {[%clk 0:02:45]}  h6 {[%clk 0:02:44]} 10. O-O {[%clk 0:02:44]}  Bd6 {[%clk 0:02:42]} 11. a3 {[%clk 0:02:35]}  Bd7 {[%clk 0:02:36]} 12. b4 {[%clk 0:02:22]}  dxc4 {[%clk 0:02:34]} 13. Bxc4 {[%clk 0:02:21]}  e5 {[%clk 0:02:34]} 14. d5 {[%clk 0:02:09]}  Ne7 {[%clk 0:02:30]} 15. e4 {[%clk 0:02:09]}  Ng6 {[%clk 0:02:29]} 16. Rfe1 {[%clk 0:02:01]}  Nh5 {[%clk 0:02:24]} 17. g3 {[%clk 0:01:59]}  Bh3 {[%clk 0:02:15]} 18. Bf1 {[%clk 0:01:56]}  Qd7 {[%clk 0:02:11]} 19. Qd3 {[%clk 0:01:53]}  Qg4 {[%clk 0:02:01]} 20. Bxh3 {[%clk 0:01:51]}  Qxh3 {[%clk 0:02:01]} 21. Qf1 {[%clk 0:01:51]}  Qd7 {[%clk 0:01:54]} 22. Be3 {[%clk 0:01:42]}  Rf8 {[%clk 0:01:50]} 23. Nd2 {[%clk 0:01:39]}  Rad8 {[%clk 0:01:33]} 24. Nc4 {[%clk 0:01:27]}  Kh7 {[%clk 0:01:28]} 25. Rac1 {[%clk 0:01:19]}  Nf6 {[%clk 0:01:20]} 26. f3 {[%clk 0:01:16]}  Ng8 {[%clk 0:01:11]} 27. Bc5 {[%clk 0:01:10]}  f5 {[%clk 0:00:56]} 28. Nxd6 {[%clk 0:01:08]}  cxd6 {[%clk 0:00:56]} 29. Bb6 {[%clk 0:01:08]}  Rc8 {[%clk 0:00:56]} 30. Qh3 {[%clk 0:01:08]}  N8e7 {[%clk 0:00:51]} 31. a4 {[%clk 0:00:53]}  Qe8 {[%clk 0:00:51]} 32. a5 {[%clk 0:00:44]}  Rc4 {[%clk 0:00:37]} 33. exf5 {[%clk 0:00:24]}  Nxf5 {[%clk 0:00:35]} 34. Ne4 {[%clk 0:00:24]}  Qb5 {[%clk 0:00:33]} 35. g4 {[%clk 0:00:16]}  Rxc1 {[%clk 0:00:29]} 36. Rxc1 {[%clk 0:00:16]}  Nf4 {[%clk 0:00:26]} 37. Qf1 {[%clk 0:00:15]}  Qxf1+ {[%clk 0:00:19]} 38. Rxf1 {[%clk 0:00:13]}  Ne7 {[%clk 0:00:19]} 39. Nxd6 {[%clk 0:00:13]}  Nexd5 {[%clk 0:00:19]} 40. Bc5 {[%clk 0:00:13]}  Rb8 {[%clk 0:00:17]} 41. Re1 {[%clk 0:00:11]}  Nd3 {[%clk 0:00:15]} 42. Re4 {[%clk 0:00:10]}  Kg6 {[%clk 0:00:13]} 43. h4 {[%clk 0:00:10]}  h5 {[%clk 0:00:13]} 44. Kg2 {[%clk 0:00:09]}  b6 {[%clk 0:00:13]} 45. axb6 {[%clk 0:00:09]}  Nxb6 {[%clk 0:00:13]} 46. Re3 {[%clk 0:00:08]}  Nf4+ {[%clk 0:00:13]} 47. Kg3 {[%clk 0:00:07]}  Nd7 {[%clk 0:00:14]} 48. Ra3 {[%clk 0:00:05]}  Ra8 {[%clk 0:00:13]} 49. Be3 {[%clk 0:00:03]}  Nd5 {[%clk 0:00:13]} 50. b5 {[%clk 0:00:03]}  Nxe3 {[%clk 0:00:12]} 51. Rxe3 {[%clk 0:00:03]}  axb5 {[%clk 0:00:12]} 52. Nxb5 {[%clk 0:00:02]}  Ra5 {[%clk 0:00:12]} 53. Nd6 {[%clk 0:00:03]}  Ra4 {[%clk 0:00:10]} 54. Nf5 {[%clk 0:00:03]}  Kf6 {[%clk 0:00:10]} 55. Rd3 {[%clk 0:00:03]}  Nc5 {[%clk 0:00:09]} 56. Rd6+ {[%clk 0:00:03]}  Ne6 {[%clk 0:00:09]} 57. Ne3 {[%clk 0:00:03]}  Ke7 {[%clk 0:00:09]} 58. Rd5 {[%clk 0:00:03]}  e4 {[%clk 0:00:08]} 59. f4 {[%clk 0:00:02]}  Ra3 {[%clk 0:00:08]} 60. Kf2 {[%clk 0:00:03]}  hxg4 {[%clk 0:00:08]} 61. f5 {[%clk 0:00:02]}  g3+ {[%clk 0:00:08]} 62. Ke2 {[%clk 0:00:02]}  Nf4+ {[%clk 0:00:08]} 63. Kd2 {[%clk 0:00:02]}  Nxd5 {[%clk 0:00:08]} 64. Nxd5+ {[%clk 0:00:00]}  Kd6 {[%clk 0:00:09]} 0-1


[Site "https://www.chess.com"]

[Event "Titled Tuesday Blitz July 4 Late 2023"]
[White "Svicevic, Rastko"]
[Black "Sun, Rick"]
[WhiteFideId "916315"]
[BlackFideId "30909481"]
[WhiteElo "2356"]
[BlackElo "2611"]
[Result "0-1"]
[Round "1"]
[TimeControl "180+2"]
[Date "2023.07.04"]
[WhiteClock "0:00:00"]
[BlackClock "0:00:51"]
[Board "110"]

1. e4 {[%clk 0:02:59]}  d6 {[%clk 0:03:00]} 2. d4 {[%clk 0:02:57]}  Nf6 {[%clk 0:03:01]} 3. Nc3 {[%clk 0:02:46]}  Nbd7 {[%clk 0:03:01]} 4. f4 {[%clk 0:02:29]}  e5 {[%clk 0:03:01]} 5. Nf3 {[%clk 0:02:08]}  exd4 {[%clk 0:03:00]} 6. Nxd4 {[%clk 0:02:07]}  g6 {[%clk 0:03:00]} 7. Be3 {[%clk 0:02:05]}  Bg7 {[%clk 0:02:59]} 8. Be2 {[%clk 0:02:04]}  O-O {[%clk 0:02:59]} 9. O-O {[%clk 0:02:04]}  Re8 {[%clk 0:02:59]} 10. Bf3 {[%clk 0:02:02]}  Nc5 {[%clk 0:02:55]} 11. e5 {[%clk 0:01:52]}  dxe5 {[%clk 0:02:49]} 12. fxe5 {[%clk 0:01:53]}  Rxe5 {[%clk 0:02:48]} 13. Bf4 {[%clk 0:01:48]}  Re8 {[%clk 0:02:35]} 14. Kh1 {[%clk 0:01:47]}  c6 {[%clk 0:02:18]} 15. h3 {[%clk 0:01:21]}  Ne6 {[%clk 0:02:14]} 16. Be5 {[%clk 0:01:13]}  Ng5 {[%clk 0:01:24]} 17. Bh2 {[%clk 0:00:52]}  Nxf3 {[%clk 0:01:13]} 18. Rxf3 {[%clk 0:00:53]}  Qb6 {[%clk 0:01:03]} 19. Nb3 {[%clk 0:00:52]}  Be6 {[%clk 0:00:59]} 20. Qf1 {[%clk 0:00:00]}  Nd5 {[%clk 0:00:51]} 0-1


[Site "https://www.chess.com"]

[Event "Titled Tuesday Blitz July 4 Late 2023"]
[White "Grinev, Valeriy"]
[Black "De Prado Rodriguez, Oscar Bruno"]
[WhiteFideId "14117517"]
[BlackFideId "2203600"]
[WhiteElo "2606"]
[BlackElo "2355"]
[Result "1/2-1/2"]
[Round "1"]
[TimeControl "180+2"]
[Date "2023.07.04"]
[WhiteClock "0:00:21"]
[BlackClock "0:00:45"]
[Board "111"]

1. e4 {[%clk 0:02:59]}  d5 {[%clk 0:02:54]} 2. exd5 {[%clk 0:02:58]}  Qxd5 {[%clk 0:02:52]} 3. Nc3 {[%clk 0:02:59]}  Qd6 {[%clk 0:02:51]} 4. Nf3 {[%clk 0:02:57]}  Nf6 {[%clk 0:02:51]} 5. h3 {[%clk 0:02:53]}  g6 {[%clk 0:02:48]} 6. d4 {[%clk 0:02:52]}  Bg7 {[%clk 0:02:48]} 7. Be3 {[%clk 0:02:50]}  a6 {[%clk 0:02:47]} 8. Qd2 {[%clk 0:02:48]}  O-O {[%clk 0:02:46]} 9. a3 {[%clk 0:02:47]}  b5 {[%clk 0:02:45]} 10. Be2 {[%clk 0:02:43]}  Bb7 {[%clk 0:02:45]} 11. O-O-O {[%clk 0:02:38]}  Nbd7 {[%clk 0:02:44]} 12. Rhe1 {[%clk 0:02:36]}  Rfe8 {[%clk 0:02:45]} 13. Kb1 {[%clk 0:02:35]}  Nd5 {[%clk 0:02:44]} 14. Ne4 {[%clk 0:02:33]}  Qb6 {[%clk 0:02:40]} 15. Nc5 {[%clk 0:02:32]}  Rad8 {[%clk 0:02:28]} 16. Qc1 {[%clk 0:02:22]}  Nxe3 {[%clk 0:02:27]} 17. Qxe3 {[%clk 0:02:22]}  Nxc5 {[%clk 0:02:26]} 18. dxc5 {[%clk 0:02:22]}  Qf6 {[%clk 0:02:24]} 19. c3 {[%clk 0:02:22]}  e6 {[%clk 0:02:12]} 20. Ka1 {[%clk 0:02:12]}  Rd5 {[%clk 0:02:07]} 21. Rxd5 {[%clk 0:02:10]}  Bxd5 {[%clk 0:02:07]} 22. g4 {[%clk 0:02:07]}  c6 {[%clk 0:02:07]} 23. Bd1 {[%clk 0:02:04]}  a5 {[%clk 0:02:07]} 24. Nd4 {[%clk 0:02:02]}  b4 {[%clk 0:02:05]} 25. g5 {[%clk 0:01:50]}  Qd8 {[%clk 0:01:59]} 26. cxb4 {[%clk 0:01:48]}  axb4 {[%clk 0:02:00]} 27. axb4 {[%clk 0:01:35]}  Qa8+ {[%clk 0:01:50]} 28. Kb1 {[%clk 0:01:35]}  Qa2+ {[%clk 0:01:49]} 29. Kc1 {[%clk 0:01:35]}  Qa1+ {[%clk 0:01:35]} 30. Kc2 {[%clk 0:01:34]}  Qa4+ {[%clk 0:01:28]} 31. Kc3 {[%clk 0:01:34]}  Qb5 {[%clk 0:01:21]} 32. Qd3 {[%clk 0:01:22]}  Qb7 {[%clk 0:01:15]} 33. f4 {[%clk 0:01:05]}  Rb8 {[%clk 0:01:14]} 34. b5 {[%clk 0:01:02]}  cxb5 {[%clk 0:01:13]} 35. b4 {[%clk 0:01:02]}  Ra8 {[%clk 0:01:10]} 36. Bb3 {[%clk 0:01:02]}  Ra3 {[%clk 0:01:09]} 37. Re5 {[%clk 0:00:59]}  Bxe5 {[%clk 0:01:07]} 38. fxe5 {[%clk 0:01:00]}  Bxb3 {[%clk 0:01:06]} 39. Nxb3 {[%clk 0:01:00]}  Qb8 {[%clk 0:01:02]} 40. Qd6 {[%clk 0:00:57]}  Qa8 {[%clk 0:01:01]} 41. c6 {[%clk 0:00:57]}  Qa4 {[%clk 0:01:00]} 42. Qd8+ {[%clk 0:00:56]}  Kg7 {[%clk 0:00:59]} 43. Qf6+ {[%clk 0:00:57]}  Kf8 {[%clk 0:00:58]} 44. Qh8+ {[%clk 0:00:47]}  Ke7 {[%clk 0:00:59]} 45. Qf6+ {[%clk 0:00:48]}  Kf8 {[%clk 0:00:59]} 46. Qd8+ {[%clk 0:00:39]}  Kg7 {[%clk 0:00:58]} 47. Qd1 {[%clk 0:00:36]}  Qa6 {[%clk 0:00:50]} 48. Qf3 {[%clk 0:00:33]}  Qa4 {[%clk 0:00:48]} 49. Kb2 {[%clk 0:00:28]}  Ra2+ {[%clk 0:00:47]} 50. Kb1 {[%clk 0:00:29]}  Rh2 {[%clk 0:00:45]} 51. Qf6+ {[%clk 0:00:24]}  Kg8 {[%clk 0:00:44]} 52. Qd8+ {[%clk 0:00:23]}  Kg7 {[%clk 0:00:45]} 53. Qf6+ {[%clk 0:00:21]}  Kg8 {[%clk 0:00:45]} 54. Qd8+ {[%clk 0:00:21]}  Kg7 {[%clk 0:00:45]} 55. Qf6+ {[%clk 0:00:21]} 1/2-1/2


[Site "https://www.chess.com"]

[Event "Titled Tuesday Blitz July 4 Late 2023"]
[White "Kanyamarala, Trisha"]
[Black "Vdovin, Vadim"]
[WhiteFideId "45004722"]
[BlackFideId "24107158"]
[WhiteElo "2355"]
[BlackElo "2605"]
[Result "1-0"]
[Round "1"]
[TimeControl "180+2"]
[Date "2023.07.04"]
[WhiteClock "0:00:52"]
[BlackClock "0:00:00"]
[Board "112"]

1. c4 {[%clk 0:02:59]}  e6 {[%clk 0:03:00]} 2. Nc3 {[%clk 0:02:56]}  d5 {[%clk 0:02:59]} 3. e3 {[%clk 0:02:56]}  Nf6 {[%clk 0:02:59]} 4. Nf3 {[%clk 0:02:56]}  c5 {[%clk 0:02:59]} 5. cxd5 {[%clk 0:02:54]}  exd5 {[%clk 0:02:58]} 6. d4 {[%clk 0:02:55]}  a6 {[%clk 0:02:57]} 7. Bd3 {[%clk 0:02:53]}  Nc6 {[%clk 0:02:57]} 8. O-O {[%clk 0:02:53]}  Bg4 {[%clk 0:02:45]} 9. h3 {[%clk 0:02:50]}  Bh5 {[%clk 0:02:44]} 10. Be2 {[%clk 0:02:44]}  Bd6 {[%clk 0:02:37]} 11. dxc5 {[%clk 0:02:40]}  Bxc5 {[%clk 0:02:38]} 12. Nd4 {[%clk 0:02:39]}  Bg6 {[%clk 0:02:31]} 13. b3 {[%clk 0:02:33]}  Bxd4 {[%clk 0:02:18]} 14. exd4 {[%clk 0:02:33]}  O-O {[%clk 0:02:17]} 15. Bf3 {[%clk 0:02:25]}  Rc8 {[%clk 0:02:14]} 16. Bg5 {[%clk 0:02:24]}  Nb4 {[%clk 0:01:30]} 17. Bxf6 {[%clk 0:02:07]}  gxf6 {[%clk 0:01:15]} 18. Rc1 {[%clk 0:02:04]}  Nd3 {[%clk 0:01:11]} 19. Rc2 {[%clk 0:01:51]}  Nf4 {[%clk 0:00:55]} 20. Rc1 {[%clk 0:01:49]}  Qa5 {[%clk 0:00:55]} 21. Qd2 {[%clk 0:01:42]}  Nd3 {[%clk 0:00:52]} 22. Rc2 {[%clk 0:01:41]}  Nb4 {[%clk 0:00:49]} 23. Rcc1 {[%clk 0:01:40]}  Nd3 {[%clk 0:00:31]} 24. Rc2 {[%clk 0:01:39]}  Rfd8 {[%clk 0:00:26]} 25. Nxd5 {[%clk 0:01:17]}  Qxd2 {[%clk 0:00:24]} 26. Rxd2 {[%clk 0:01:16]}  Kg7 {[%clk 0:00:22]} 27. Ne7 {[%clk 0:01:12]}  Rc7 {[%clk 0:00:17]} 28. Nxg6 {[%clk 0:01:11]}  Rxd4 {[%clk 0:00:08]} 29. Nf4 {[%clk 0:01:03]}  Rxf4 {[%clk 0:00:06]} 30. Rxd3 {[%clk 0:01:03]}  Rc2 {[%clk 0:00:06]} 31. a4 {[%clk 0:00:58]}  b5 {[%clk 0:00:06]} 32. axb5 {[%clk 0:00:58]}  axb5 {[%clk 0:00:07]} 33. Re1 {[%clk 0:00:55]}  Rb4 {[%clk 0:00:07]} 34. Re7 {[%clk 0:00:54]}  Kf8 {[%clk 0:00:04]} 35. Rb7 {[%clk 0:00:52]}  Rc5 {[%clk 0:00:01]} 36. Rdd7 {[%clk 0:00:52]}  Rf4 {[%clk 0:00:01]} 37. Rxf7+ {[%clk 0:00:52]}  Ke8 {[%clk 0:00:00]} 38. Rxh7 {[%clk 0:00:52]} 1-0


[Site "https://www.chess.com"]

[Event "Titled Tuesday Blitz July 4 Late 2023"]
[White "Janaszak, Dawid"]
[Black "ElenGajger"]
[WhiteFideId "1119206"]
[WhiteElo "2605"]
[BlackElo "2354"]
[Result "1-0"]
[Round "1"]
[TimeControl "180+2"]
[Date "2023.07.04"]
[WhiteClock "0:01:34"]
[BlackClock "0:00:42"]
[Board "113"]

1. e4 {[%clk 0:03:00]}  c5 {[%clk 0:02:59]} 2. Nc3 {[%clk 0:02:59]}  Nc6 {[%clk 0:02:57]} 3. Bb5 {[%clk 0:02:58]}  Nd4 {[%clk 0:02:56]} 4. Nf3 {[%clk 0:02:58]}  Nxb5 {[%clk 0:02:54]} 5. Nxb5 {[%clk 0:02:59]}  g6 {[%clk 0:02:53]} 6. d4 {[%clk 0:02:59]}  a6 {[%clk 0:02:50]} 7. Nc3 {[%clk 0:02:58]}  Bg7 {[%clk 0:02:39]} 8. dxc5 {[%clk 0:02:49]}  Qa5 {[%clk 0:02:36]} 9. Bd2 {[%clk 0:02:44]}  Qxc5 {[%clk 0:02:35]} 10. Nd5 {[%clk 0:02:45]}  d6 {[%clk 0:01:53]} 11. O-O {[%clk 0:02:27]}  Be6 {[%clk 0:01:38]} 12. Bb4 {[%clk 0:02:22]}  Qc6 {[%clk 0:01:36]} 13. Nd4 {[%clk 0:02:21]}  Bxd4 {[%clk 0:01:23]} 14. Qxd4 {[%clk 0:02:19]}  f6 {[%clk 0:01:21]} 15. a4 {[%clk 0:02:13]}  Nh6 {[%clk 0:01:13]} 16. Ra3 {[%clk 0:02:13]}  Bxd5 {[%clk 0:01:08]} 17. exd5 {[%clk 0:02:11]}  Qd7 {[%clk 0:00:55]} 18. Re1 {[%clk 0:02:02]}  Kf7 {[%clk 0:00:54]} 19. c4 {[%clk 0:01:49]}  Rac8 {[%clk 0:00:54]} 20. Rae3 {[%clk 0:01:45]}  Nf5 {[%clk 0:00:53]} 21. Qg4 {[%clk 0:01:45]}  Qxa4 {[%clk 0:00:50]} 22. Rxe7+ {[%clk 0:01:38]}  Nxe7 {[%clk 0:00:50]} 23. Qe6+ {[%clk 0:01:39]}  Kg7 {[%clk 0:00:48]} 24. Qxe7+ {[%clk 0:01:39]}  Kh6 {[%clk 0:00:42]} 25. Bd2+ {[%clk 0:01:34]}  g5 {[%clk 0:00:41]} 26. Qxf6+ {[%clk 0:01:33]}  Kh5 {[%clk 0:00:42]} 27. Qxg5# {[%clk 0:01:34]} 1-0


[Site "https://www.chess.com"]

[Event "Titled Tuesday Blitz July 4 Late 2023"]
[White "Djabri, Massinas"]
[Black "Domingo Nunez, Alejandro"]
[WhiteFideId "7905726"]
[BlackFideId "22245561"]
[WhiteElo "2354"]
[BlackElo "2604"]
[Result "0-1"]
[Round "1"]
[TimeControl "180+2"]
[Date "2023.07.04"]
[WhiteClock "0:00:00"]
[BlackClock "0:00:28"]
[Board "114"]

1. d4 {[%clk 0:02:55]}  g6 {[%clk 0:03:00]} 2. c4 {[%clk 0:02:54]}  Bg7 {[%clk 0:03:01]} 3. Nc3 {[%clk 0:02:54]}  d6 {[%clk 0:03:01]} 4. e4 {[%clk 0:02:54]}  Nf6 {[%clk 0:03:02]} 5. Be2 {[%clk 0:02:54]}  O-O {[%clk 0:03:02]} 6. Nf3 {[%clk 0:02:55]}  e5 {[%clk 0:03:02]} 7. O-O {[%clk 0:02:55]}  Nc6 {[%clk 0:03:02]} 8. d5 {[%clk 0:02:56]}  Ne7 {[%clk 0:03:02]} 9. Ne1 {[%clk 0:02:56]}  Ne8 {[%clk 0:03:03]} 10. Nd3 {[%clk 0:02:56]}  f5 {[%clk 0:03:04]} 11. f3 {[%clk 0:02:56]}  f4 {[%clk 0:03:04]} 12. Bd2 {[%clk 0:02:56]}  g5 {[%clk 0:03:05]} 13. Rc1 {[%clk 0:02:56]}  h5 {[%clk 0:03:06]} 14. c5 {[%clk 0:02:55]}  Rf6 {[%clk 0:03:06]} 15. cxd6 {[%clk 0:02:50]}  cxd6 {[%clk 0:03:07]} 16. Nf2 {[%clk 0:02:47]}  Rg6 {[%clk 0:03:06]} 17. Nb5 {[%clk 0:02:41]}  Bd7 {[%clk 0:03:05]} 18. a4 {[%clk 0:02:27]}  Kh8 {[%clk 0:02:58]} 19. a5 {[%clk 0:02:23]}  Ng8 {[%clk 0:02:59]} 20. Rc3 {[%clk 0:01:53]}  Nh6 {[%clk 0:02:58]} 21. h3 {[%clk 0:01:49]}  Bf8 {[%clk 0:02:00]} 22. b4 {[%clk 0:01:42]}  Rg7 {[%clk 0:01:59]} 23. Qb3 {[%clk 0:01:12]}  Kg8 {[%clk 0:01:50]} 24. Rfc1 {[%clk 0:01:09]}  g4 {[%clk 0:01:50]} 25. fxg4 {[%clk 0:01:08]}  hxg4 {[%clk 0:01:51]} 26. hxg4 {[%clk 0:01:03]}  Qg5 {[%clk 0:01:42]} 27. Nh3 {[%clk 0:00:56]}  Qg6 {[%clk 0:01:41]} 28. g5 {[%clk 0:00:42]}  Nf7 {[%clk 0:01:32]} 29. Nc7 {[%clk 0:00:20]}  Nxc7 {[%clk 0:01:25]} 30. Rxc7 {[%clk 0:00:19]}  Nxg5 {[%clk 0:01:25]} 31. Nxg5 {[%clk 0:00:19]}  Qxg5 {[%clk 0:01:25]} 32. Bf3 {[%clk 0:00:17]}  b6 {[%clk 0:00:57]} 33. a6 {[%clk 0:00:17]}  Qh4 {[%clk 0:00:56]} 34. b5 {[%clk 0:00:15]}  Rh7 {[%clk 0:00:56]} 35. Qc4 {[%clk 0:00:14]}  Re8 {[%clk 0:00:53]} 36. Kf1 {[%clk 0:00:13]}  Ree7 {[%clk 0:00:49]} 37. Ke2 {[%clk 0:00:13]}  Reg7 {[%clk 0:00:48]} 38. Kd3 {[%clk 0:00:12]}  Qf2 {[%clk 0:00:42]} 39. Re1 {[%clk 0:00:11]}  Bh3 {[%clk 0:00:35]} 40. Rxg7+ {[%clk 0:00:10]}  Rxg7 {[%clk 0:00:36]} 41. Re2 {[%clk 0:00:07]}  Qf1 {[%clk 0:00:35]} 42. Kc2 {[%clk 0:00:07]}  Bxg2 {[%clk 0:00:33]} 43. Bh5 {[%clk 0:00:04]}  f3 {[%clk 0:00:30]} 44. Qc8 {[%clk 0:00:02]}  fxe2 {[%clk 0:00:28]} 45. Qe6+ {[%clk 0:00:03]}  Kh7 {[%clk 0:00:27]} 46. Qh6+ {[%clk 0:00:01]}  Kg8 {[%clk 0:00:27]} 47. Qe6+ {[%clk 0:00:02]}  Rf7 {[%clk 0:00:27]} 48. Qg6+ {[%clk 0:00:02]}  Bg7 {[%clk 0:00:27]} 49. Qxf7+ {[%clk 0:00:02]}  Qxf7 {[%clk 0:00:27]} 50. Bxf7+ {[%clk 0:00:03]}  Kxf7 {[%clk 0:00:27]} 51. Be1 {[%clk 0:00:04]}  Bh6 {[%clk 0:00:27]} 52. Kd3 {[%clk 0:00:03]}  Bf3 {[%clk 0:00:28]} 53. Bf2 {[%clk 0:00:00]}  Bf4 {[%clk 0:00:28]} 0-1


[Site "https://www.chess.com"]